[Event "Titled Tuesday Blitz September 28 2021"]
[White "Hamidi, Amir Mohammad"]
[Black "Kaminski, Victor"]
[WhiteFideId "12563285"]
[BlackFideId "1131630"]
[WhiteElo "2239"]
[BlackElo "2181"]
[Result "0-1"]
[Round "02"]
[TimeControl "180+1"]
[Date "2021.09.28"]
[WhiteClock "0:01:20"]
[BlackClock "0:00:13"]

1. d4 {[%clk 0:03:00]}  Nf6 {[%clk 0:02:57]} 2. Nf3 {[%clk 0:03:00]}  g6 {[%clk 0:02:54]} 3. g3 {[%clk 0:02:58]}  Bg7 {[%clk 0:02:54]} 4. Bg2 {[%clk 0:02:59]}  d5 {[%clk 0:02:37]} 5. O-O {[%clk 0:03:00]}  c6 {[%clk 0:02:34]} 6. c4 {[%clk 0:03:00]}  O-O {[%clk 0:02:32]} 7. cxd5 {[%clk 0:02:55]}  cxd5 {[%clk 0:02:30]} 8. Ne5 {[%clk 0:02:55]}  e6 {[%clk 0:02:28]} 9. Nc3 {[%clk 0:02:55]}  Nfd7 {[%clk 0:02:21]} 10. Nxd7 {[%clk 0:02:54]}  Qxd7 {[%clk 0:02:20]} 11. b3 {[%clk 0:02:43]}  b6 {[%clk 0:02:17]} 12. Ba3 {[%clk 0:02:42]}  Rd8 {[%clk 0:02:14]} 13. Rc1 {[%clk 0:02:43]}  Nc6 {[%clk 0:02:11]} 14. e3 {[%clk 0:02:43]}  Ba6 {[%clk 0:02:11]} 15. Re1 {[%clk 0:02:42]}  Rac8 {[%clk 0:02:11]} 16. Qd2 {[%clk 0:02:42]}  Bf8 {[%clk 0:02:01]} 17. Bxf8 {[%clk 0:02:40]}  Kxf8 {[%clk 0:02:00]} 18. Na4 {[%clk 0:02:36]}  Kg7 {[%clk 0:01:49]} 19. Rc2 {[%clk 0:02:30]}  Ne7 {[%clk 0:01:36]} 20. Rec1 {[%clk 0:02:29]}  Rxc2 {[%clk 0:01:34]} 21. Rxc2 {[%clk 0:02:29]}  Rc8 {[%clk 0:01:34]} 22. Bf1 {[%clk 0:02:25]}  Bxf1 {[%clk 0:01:33]} 23. Kxf1 {[%clk 0:02:26]}  Nf5 {[%clk 0:01:18]} 24. Rxc8 {[%clk 0:02:21]}  Qxc8 {[%clk 0:01:19]} 25. Qc3 {[%clk 0:02:21]}  Qa6+ {[%clk 0:01:17]} 26. Ke1 {[%clk 0:02:16]}  Nd6 {[%clk 0:01:13]} 27. Qc2 {[%clk 0:02:13]}  Ne4 {[%clk 0:01:01]} 28. f3 {[%clk 0:01:24]}  Nd6 {[%clk 0:00:46]} 29. Qe2 {[%clk 0:01:23]}  Qa5+ {[%clk 0:00:41]} 30. Qd2 {[%clk 0:01:23]}  Qa6 {[%clk 0:00:39]} 31. Nc3 {[%clk 0:01:23]}  b5 {[%clk 0:00:30]} 32. Nd1 {[%clk 0:01:22]}  Qb6 {[%clk 0:00:23]} 33. Nf2 {[%clk 0:01:23]}  b4 {[%clk 0:00:20]} 34. Nd3 {[%clk 0:01:23]}  a5 {[%clk 0:00:20]} 35. Nc5 {[%clk 0:01:23]}  Nb5 {[%clk 0:00:20]} 36. Qd3 {[%clk 0:01:20]}  Nc3 {[%clk 0:00:20]} 37. a4 {[%clk 0:01:20]}  h5 {[%clk 0:00:13]} 0-1


[Site "https://www.chess.com"]

[Event "Titled Tuesday Blitz September 28 2021"]
[White "Indjic, Aleksandar"]
[Black "Wadsworth, Matthew J"]
[WhiteFideId "911925"]
[BlackFideId "415804"]
[WhiteElo "2643"]
[BlackElo "2293"]
[Result "0-1"]
[Round "02"]
[TimeControl "180+1"]
[Date "2021.09.28"]
[WhiteClock "0:00:08"]
[BlackClock "0:00:12"]

1. e4 {[%clk 0:03:00]}  c5 {[%clk 0:02:58]} 2. Nf3 {[%clk 0:02:58]}  e6 {[%clk 0:02:58]} 3. b3 {[%clk 0:02:56]}  d5 {[%clk 0:02:56]} 4. Bb5+ {[%clk 0:02:53]}  Nc6 {[%clk 0:02:54]} 5. exd5 {[%clk 0:02:51]}  exd5 {[%clk 0:02:52]} 6. O-O {[%clk 0:02:50]}  Bd6 {[%clk 0:02:49]} 7. d4 {[%clk 0:02:38]}  Ne7 {[%clk 0:02:43]} 8. dxc5 {[%clk 0:02:28]}  Bxc5 {[%clk 0:02:44]} 9. Nc3 {[%clk 0:02:27]}  O-O {[%clk 0:02:42]} 10. Bxc6 {[%clk 0:02:26]}  bxc6 {[%clk 0:02:41]} 11. Na4 {[%clk 0:02:26]}  Bd6 {[%clk 0:02:37]} 12. h3 {[%clk 0:02:26]}  Ng6 {[%clk 0:02:26]} 13. Bg5 {[%clk 0:02:19]}  Qc7 {[%clk 0:02:23]} 14. Re1 {[%clk 0:02:18]}  Bb7 {[%clk 0:02:09]} 15. Nd4 {[%clk 0:02:11]}  a6 {[%clk 0:02:00]} 16. Nf5 {[%clk 0:02:10]}  Be5 {[%clk 0:01:55]} 17. Nc5 {[%clk 0:01:43]}  Bxa1 {[%clk 0:01:36]} 18. Qxa1 {[%clk 0:01:41]}  f6 {[%clk 0:01:36]} 19. Ne6 {[%clk 0:01:15]}  Qd7 {[%clk 0:01:31]} 20. Nexg7 {[%clk 0:01:04]}  fxg5 {[%clk 0:01:23]} 21. Nh6+ {[%clk 0:01:02]}  Kh8 {[%clk 0:01:18]} 22. Ne6+ {[%clk 0:00:28]}  d4 {[%clk 0:01:17]} 23. Nc5 {[%clk 0:00:26]}  Qg7 {[%clk 0:01:12]} 24. Ng4 {[%clk 0:00:26]}  Bc8 {[%clk 0:01:06]} 25. Nh2 {[%clk 0:00:19]}  d3 {[%clk 0:01:03]} 26. Qc1 {[%clk 0:00:17]}  dxc2 {[%clk 0:01:02]} 27. Qxc2 {[%clk 0:00:17]}  Bf5 {[%clk 0:01:01]} 28. Qc1 {[%clk 0:00:16]}  Rae8 {[%clk 0:01:01]} 29. Rf1 {[%clk 0:00:17]}  Nf4 {[%clk 0:00:58]} 30. Kh1 {[%clk 0:00:17]}  Nd3 {[%clk 0:00:52]} 31. Nxd3 {[%clk 0:00:16]}  Bxd3 {[%clk 0:00:53]} 32. Rd1 {[%clk 0:00:14]}  Be4 {[%clk 0:00:49]} 33. f3 {[%clk 0:00:13]}  Bd5 {[%clk 0:00:49]} 34. Ng4 {[%clk 0:00:14]}  h5 {[%clk 0:00:47]} 35. Nh2 {[%clk 0:00:14]}  Re2 {[%clk 0:00:46]} 36. Rg1 {[%clk 0:00:12]}  Rfe8 {[%clk 0:00:45]} 37. a4 {[%clk 0:00:12]}  Qe5 {[%clk 0:00:44]} 38. Qb1 {[%clk 0:00:09]}  Kg7 {[%clk 0:00:41]} 39. Nf1 {[%clk 0:00:07]}  g4 {[%clk 0:00:33]} 40. Qc1 {[%clk 0:00:08]}  Re1 {[%clk 0:00:24]} 41. Qc2 {[%clk 0:00:06]}  Qe2 {[%clk 0:00:23]} 42. Qf5 {[%clk 0:00:05]}  Rxf1 {[%clk 0:00:21]} 43. Qg5+ {[%clk 0:00:06]}  Kf7 {[%clk 0:00:21]} 44. Qxh5+ {[%clk 0:00:06]}  Ke7 {[%clk 0:00:20]} 45. Qg5+ {[%clk 0:00:07]}  Kd6 {[%clk 0:00:20]} 46. Qf4+ {[%clk 0:00:06]}  Kd7 {[%clk 0:00:18]} 47. Qxg4+ {[%clk 0:00:07]}  Kc7 {[%clk 0:00:17]} 48. Qf4+ {[%clk 0:00:05]}  Kc8 {[%clk 0:00:15]} 49. Qg4+ {[%clk 0:00:05]}  Be6 {[%clk 0:00:13]} 50. Qg6 {[%clk 0:00:05]}  Rxg1+ {[%clk 0:00:12]} 51. Kxg1 {[%clk 0:00:06]}  Qe1+ {[%clk 0:00:13]} 52. Kh2 {[%clk 0:00:06]}  Qe5+ {[%clk 0:00:13]} 53. Kg1 {[%clk 0:00:07]}  Rd8 {[%clk 0:00:13]} 54. Qc2 {[%clk 0:00:06]}  Qd4+ {[%clk 0:00:12]} 55. Kh1 {[%clk 0:00:06]}  Qd1+ {[%clk 0:00:12]} 56. Qxd1 {[%clk 0:00:07]}  Rxd1+ {[%clk 0:00:12]} 57. Kh2 {[%clk 0:00:08]}  Bxb3 {[%clk 0:00:12]} 0-1


[Site "https://www.chess.com"]

[Event "Titled Tuesday Blitz September 28 2021"]
[White "Jary, Sergey"]
[Black "Kovalchuk94"]
[WhiteFideId "14110350"]
[WhiteElo "2260"]
[BlackElo "2691"]
[Result "1/2-1/2"]
[Round "02"]
[TimeControl "180+1"]
[Date "2021.09.28"]
[WhiteClock "0:00:11"]
[BlackClock "0:00:06"]

1. e4 {[%clk 0:03:00]}  e5 {[%clk 0:02:56]} 2. Nf3 {[%clk 0:03:00]}  Nf6 {[%clk 0:02:55]} 3. Nc3 {[%clk 0:02:57]}  Nc6 {[%clk 0:02:55]} 4. d4 {[%clk 0:02:56]}  exd4 {[%clk 0:02:56]} 5. Nxd4 {[%clk 0:02:57]}  Bb4 {[%clk 0:02:56]} 6. Nxc6 {[%clk 0:02:56]}  bxc6 {[%clk 0:02:57]} 7. Bd3 {[%clk 0:02:57]}  d5 {[%clk 0:02:58]} 8. exd5 {[%clk 0:02:57]}  cxd5 {[%clk 0:02:59]} 9. O-O {[%clk 0:02:57]}  O-O {[%clk 0:02:59]} 10. Bg5 {[%clk 0:02:56]}  c6 {[%clk 0:02:58]} 11. Qf3 {[%clk 0:02:54]}  h6 {[%clk 0:02:58]} 12. Bxf6 {[%clk 0:02:54]}  Qxf6 {[%clk 0:02:59]} 13. Qxf6 {[%clk 0:02:53]}  gxf6 {[%clk 0:03:00]} 14. Ne2 {[%clk 0:02:52]}  Bd6 {[%clk 0:03:01]} 15. Nd4 {[%clk 0:02:49]}  c5 {[%clk 0:02:58]} 16. Nf5 {[%clk 0:02:47]}  Bxf5 {[%clk 0:02:57]} 17. Bxf5 {[%clk 0:02:46]}  Be5 {[%clk 0:02:55]} 18. Rab1 {[%clk 0:02:43]}  Rab8 {[%clk 0:02:53]} 19. b3 {[%clk 0:02:42]}  Bc3 {[%clk 0:02:52]} 20. Rfd1 {[%clk 0:02:36]}  d4 {[%clk 0:02:50]} 21. Rd3 {[%clk 0:02:24]}  Rfe8 {[%clk 0:02:49]} 22. Rg3+ {[%clk 0:02:17]}  Kf8 {[%clk 0:02:49]} 23. Rh3 {[%clk 0:02:16]}  Kg7 {[%clk 0:02:50]} 24. Rg3+ {[%clk 0:02:16]}  Kf8 {[%clk 0:02:50]} 25. Rh3 {[%clk 0:02:16]}  Bd2 {[%clk 0:02:00]} 26. Rd1 {[%clk 0:02:13]}  Re5 {[%clk 0:01:55]} 27. Bd3 {[%clk 0:02:10]}  Bb4 {[%clk 0:01:12]} 28. Rxh6 {[%clk 0:01:57]}  Rbe8 {[%clk 0:01:11]} 29. Rh8+ {[%clk 0:01:52]}  Kg7 {[%clk 0:01:11]} 30. Rxe8 {[%clk 0:01:52]}  Rxe8 {[%clk 0:01:12]} 31. f3 {[%clk 0:01:43]}  Re1+ {[%clk 0:01:11]} 32. Rxe1 {[%clk 0:01:42]}  Bxe1 {[%clk 0:01:12]} 33. Kf1 {[%clk 0:01:43]}  Bb4 {[%clk 0:01:09]} 34. Ke2 {[%clk 0:01:41]}  Kh6 {[%clk 0:01:06]} 35. f4 {[%clk 0:01:42]}  Ba3 {[%clk 0:01:04]} 36. Kf3 {[%clk 0:01:41]}  Kg7 {[%clk 0:01:03]} 37. Ke4 {[%clk 0:01:40]}  Kf8 {[%clk 0:00:58]} 38. Kf5 {[%clk 0:01:38]}  Kg7 {[%clk 0:00:58]} 39. Ke4 {[%clk 0:01:34]}  Kf8 {[%clk 0:00:53]} 40. Kd5 {[%clk 0:01:32]}  a5 {[%clk 0:00:46]} 41. Kc6 {[%clk 0:01:20]}  Bb4 {[%clk 0:00:38]} 42. Bc4 {[%clk 0:01:19]}  Ke7 {[%clk 0:00:36]} 43. Kb5 {[%clk 0:01:17]}  Kf8 {[%clk 0:00:35]} 44. h4 {[%clk 0:01:14]}  Kg7 {[%clk 0:00:35]} 45. g4 {[%clk 0:01:08]}  Kf8 {[%clk 0:00:32]} 46. h5 {[%clk 0:01:05]}  Kg7 {[%clk 0:00:32]} 47. Bd5 {[%clk 0:01:01]}  f5 {[%clk 0:00:25]} 48. gxf5 {[%clk 0:00:56]}  f6 {[%clk 0:00:25]} 49. Bc6 {[%clk 0:00:46]}  Kh6 {[%clk 0:00:25]} 50. Be8 {[%clk 0:00:46]}  Kg7 {[%clk 0:00:26]} 51. Bg6 {[%clk 0:00:40]}  Kh6 {[%clk 0:00:26]} 52. Kc4 {[%clk 0:00:37]}  Kg7 {[%clk 0:00:26]} 53. Kd5 {[%clk 0:00:37]}  Kh6 {[%clk 0:00:21]} 54. Ke6 {[%clk 0:00:36]}  Bc3 {[%clk 0:00:21]} 55. a3 {[%clk 0:00:31]}  Bb2 {[%clk 0:00:20]} 56. a4 {[%clk 0:00:29]}  Bc3 {[%clk 0:00:20]} 57. Be8 {[%clk 0:00:27]}  Kg7 {[%clk 0:00:19]} 58. Bb5 {[%clk 0:00:26]}  Bd2 {[%clk 0:00:18]} 59. Kd5 {[%clk 0:00:23]}  Bb4 {[%clk 0:00:18]} 60. Bd3 {[%clk 0:00:22]}  Kh6 {[%clk 0:00:17]} 61. Ke6 {[%clk 0:00:21]}  Kg7 {[%clk 0:00:17]} 62. h6+ {[%clk 0:00:21]}  Kxh6 {[%clk 0:00:18]} 63. Kxf6 {[%clk 0:00:21]}  Kh7 {[%clk 0:00:15]} 64. Kf7 {[%clk 0:00:21]}  Kh8 {[%clk 0:00:12]} 65. f6 {[%clk 0:00:21]}  Bd2 {[%clk 0:00:11]} 66. f5 {[%clk 0:00:21]}  Bb4 {[%clk 0:00:10]} 67. Be2 {[%clk 0:00:20]}  Kh7 {[%clk 0:00:07]} 68. Bh5 {[%clk 0:00:20]}  Kh8 {[%clk 0:00:06]} 69. Bg6 {[%clk 0:00:20]}  Ba3 {[%clk 0:00:05]} 70. Ke6 {[%clk 0:00:19]}  Kg8 {[%clk 0:00:05]} 71. Kd5 {[%clk 0:00:15]}  Kf8 {[%clk 0:00:05]} 72. Kc4 {[%clk 0:00:14]}  Bb4 {[%clk 0:00:04]} 73. Kb5 {[%clk 0:00:13]}  Kg8 {[%clk 0:00:04]} 74. Bh5 {[%clk 0:00:13]}  Kf8 {[%clk 0:00:04]} 75. Be2 {[%clk 0:00:14]}  Kf7 {[%clk 0:00:04]} 76. Bc4+ {[%clk 0:00:13]}  Kxf6 {[%clk 0:00:05]} 77. Bd3 {[%clk 0:00:12]}  Ke5 {[%clk 0:00:05]} 78. Kc4 {[%clk 0:00:12]}  Kf6 {[%clk 0:00:06]} 79. Kd5 {[%clk 0:00:12]}  Ba3 {[%clk 0:00:05]} 80. Kc4 {[%clk 0:00:12]}  Bb4 {[%clk 0:00:06]} 81. Kb5 {[%clk 0:00:11]} 1/2-1/2


[Site "https://www.chess.com"]

[Event "Titled Tuesday Blitz September 28 2021"]
[White "Kamsky, Gata"]
[Black "Garcia Garcia, Alejandro"]
[WhiteFideId "2000024"]
[BlackFideId "3516334"]
[WhiteElo "2603"]
[BlackElo "2131"]
[Result "1-0"]
[Round "02"]
[TimeControl "180+1"]
[Date "2021.09.28"]
[WhiteClock "0:01:50"]
[BlackClock "0:00:49"]

1. e4 {[%clk 0:03:00]}  c5 {[%clk 0:03:00]} 2. Nf3 {[%clk 0:02:57]}  e6 {[%clk 0:03:00]} 3. d4 {[%clk 0:02:55]}  cxd4 {[%clk 0:03:01]} 4. Nxd4 {[%clk 0:02:54]}  Nc6 {[%clk 0:03:01]} 5. Nb5 {[%clk 0:02:51]}  d6 {[%clk 0:03:00]} 6. c4 {[%clk 0:02:51]}  Nf6 {[%clk 0:03:00]} 7. N1c3 {[%clk 0:02:50]}  a6 {[%clk 0:03:00]} 8. Nd4 {[%clk 0:02:50]}  Be7 {[%clk 0:03:01]} 9. Be2 {[%clk 0:02:50]}  O-O {[%clk 0:03:01]} 10. O-O {[%clk 0:02:50]}  Ne5 {[%clk 0:03:01]} 11. Be3 {[%clk 0:02:46]}  b6 {[%clk 0:02:59]} 12. Rc1 {[%clk 0:02:43]}  Bb7 {[%clk 0:02:59]} 13. f3 {[%clk 0:02:43]}  Rc8 {[%clk 0:02:58]} 14. b3 {[%clk 0:02:42]}  Qc7 {[%clk 0:02:55]} 15. Qd2 {[%clk 0:02:41]}  Rfd8 {[%clk 0:02:54]} 16. Rfd1 {[%clk 0:02:41]}  Qb8 {[%clk 0:02:47]} 17. Kh1 {[%clk 0:02:40]}  Qa8 {[%clk 0:02:40]} 18. Na4 {[%clk 0:02:39]}  Ned7 {[%clk 0:02:32]} 19. Nc2 {[%clk 0:02:32]}  d5 {[%clk 0:01:40]} 20. exd5 {[%clk 0:02:30]}  b5 {[%clk 0:01:37]} 21. Nb6 {[%clk 0:02:18]}  Nxb6 {[%clk 0:01:36]} 22. Bxb6 {[%clk 0:02:17]}  Rd7 {[%clk 0:01:35]} 23. Bd4 {[%clk 0:02:13]}  exd5 {[%clk 0:01:33]} 24. cxb5 {[%clk 0:02:12]}  axb5 {[%clk 0:01:11]} 25. Bxb5 {[%clk 0:02:12]}  Rdc7 {[%clk 0:01:11]} 26. a4 {[%clk 0:02:09]}  Ba6 {[%clk 0:01:08]} 27. Bxa6 {[%clk 0:02:02]}  Qxa6 {[%clk 0:01:09]} 28. Ne3 {[%clk 0:01:59]}  Rxc1 {[%clk 0:01:02]} 29. Rxc1 {[%clk 0:01:58]}  Rxc1+ {[%clk 0:01:02]} 30. Qxc1 {[%clk 0:01:58]}  Qd3 {[%clk 0:01:02]} 31. Qd1 {[%clk 0:01:56]}  Qa6 {[%clk 0:00:55]} 32. Bxf6 {[%clk 0:01:51]}  Bxf6 {[%clk 0:00:53]} 33. Nxd5 {[%clk 0:01:51]}  Be5 {[%clk 0:00:49]} 34. Ne7+ {[%clk 0:01:50]} 1-0


[Site "https://www.chess.com"]

[Event "Titled Tuesday Blitz September 28 2021"]
[White "Karavaeva, Olga"]
[Black "Schmakel, Sam"]
[WhiteFideId "4124111"]
[BlackFideId "2039311"]
[WhiteElo "2105"]
[BlackElo "2356"]
[Result "1-0"]
[Round "02"]
[TimeControl "180+1"]
[Date "2021.09.28"]
[WhiteClock "0:00:09"]
[BlackClock "0:00:02"]

1. c4 {[%clk 0:03:00]}  Nf6 {[%clk 0:02:59]} 2. Nc3 {[%clk 0:03:01]}  g6 {[%clk 0:02:59]} 3. g3 {[%clk 0:03:01]}  Bg7 {[%clk 0:03:00]} 4. Bg2 {[%clk 0:03:01]}  O-O {[%clk 0:03:00]} 5. e3 {[%clk 0:03:02]}  d6 {[%clk 0:03:00]} 6. Nge2 {[%clk 0:03:01]}  e5 {[%clk 0:03:00]} 7. d4 {[%clk 0:03:00]}  Re8 {[%clk 0:02:57]} 8. O-O {[%clk 0:02:59]}  e4 {[%clk 0:02:55]} 9. d5 {[%clk 0:02:59]}  h5 {[%clk 0:02:52]} 10. h4 {[%clk 0:02:58]}  Nbd7 {[%clk 0:02:31]} 11. Nd4 {[%clk 0:02:54]}  Nf8 {[%clk 0:02:20]} 12. Qc2 {[%clk 0:02:52]}  Qe7 {[%clk 0:02:20]} 13. b3 {[%clk 0:02:50]}  N8h7 {[%clk 0:02:17]} 14. Bb2 {[%clk 0:02:44]}  g5 {[%clk 0:02:17]} 15. hxg5 {[%clk 0:02:43]}  Nxg5 {[%clk 0:02:18]} 16. Nce2 {[%clk 0:02:37]}  Bg4 {[%clk 0:01:46]} 17. Nf4 {[%clk 0:02:32]}  Nd7 {[%clk 0:01:27]} 18. Kh2 {[%clk 0:02:20]}  h4 {[%clk 0:01:05]} 19. gxh4 {[%clk 0:02:19]}  Nf3+ {[%clk 0:01:05]} 20. Nxf3 {[%clk 0:02:09]}  exf3 {[%clk 0:01:05]} 21. Bh3 {[%clk 0:01:56]}  Qxh4 {[%clk 0:00:58]} 22. Rg1 {[%clk 0:01:49]}  Bxh3 {[%clk 0:00:10]} 23. Rxg7+ {[%clk 0:01:47]}  Kf8 {[%clk 0:00:11]} 24. Nxh3 {[%clk 0:01:43]}  Re4 {[%clk 0:00:07]} 25. Rag1 {[%clk 0:01:34]}  Ke7 {[%clk 0:00:07]} 26. Rg8 {[%clk 0:01:24]}  Rxg8 {[%clk 0:00:07]} 27. Rxg8 {[%clk 0:01:25]}  f5 {[%clk 0:00:03]} 28. Rg3 {[%clk 0:01:18]}  Ne5 {[%clk 0:00:01]} 29. Bxe5 {[%clk 0:01:16]}  dxe5 {[%clk 0:00:02]} 30. Rxf3 {[%clk 0:01:01]}  Kf6 {[%clk 0:00:02]} 31. Rg3 {[%clk 0:00:56]}  Rg4 {[%clk 0:00:02]} 32. Qe2 {[%clk 0:00:46]}  Rxg3 {[%clk 0:00:02]} 33. fxg3 {[%clk 0:00:47]}  Qe4 {[%clk 0:00:02]} 34. Nf2 {[%clk 0:00:42]}  Qb1 {[%clk 0:00:03]} 35. Kg2 {[%clk 0:00:39]}  a5 {[%clk 0:00:03]} 36. g4 {[%clk 0:00:37]}  f4 {[%clk 0:00:02]} 37. exf4 {[%clk 0:00:36]}  exf4 {[%clk 0:00:03]} 38. Ne4+ {[%clk 0:00:35]}  Kg6 {[%clk 0:00:02]} 39. Nc3 {[%clk 0:00:34]}  Qa1 {[%clk 0:00:03]} 40. Qe4+ {[%clk 0:00:31]}  Kg7 {[%clk 0:00:02]} 41. Qe5+ {[%clk 0:00:29]}  Kg6 {[%clk 0:00:02]} 42. Qf5+ {[%clk 0:00:26]}  Kg7 {[%clk 0:00:02]} 43. Qg5+ {[%clk 0:00:25]}  Kf7 {[%clk 0:00:03]} 44. Qxf4+ {[%clk 0:00:24]}  Kg7 {[%clk 0:00:03]} 45. Qd4+ {[%clk 0:00:18]}  Kg6 {[%clk 0:00:04]} 46. Ne2 {[%clk 0:00:16]}  Qxa2 {[%clk 0:00:04]} 47. Qd3+ {[%clk 0:00:14]}  Kg7 {[%clk 0:00:04]} 48. Kf3 {[%clk 0:00:14]}  a4 {[%clk 0:00:04]} 49. bxa4 {[%clk 0:00:14]}  Qxa4 {[%clk 0:00:05]} 50. Nf4 {[%clk 0:00:13]}  Qa1 {[%clk 0:00:04]} 51. g5 {[%clk 0:00:13]}  Qh1+ {[%clk 0:00:03]} 52. Kg4 {[%clk 0:00:10]}  Qg1+ {[%clk 0:00:03]} 53. Kf5 {[%clk 0:00:10]}  Qf2 {[%clk 0:00:02]} 54. Qe4 {[%clk 0:00:09]} 1-0


[Site "https://www.chess.com"]

[Event "Titled Tuesday Blitz September 28 2021"]
[White "Khusnutdinov, Rustam"]
[Black "Mortazavi, Ali"]
[WhiteFideId "13701703"]
[BlackFideId "401323"]
[WhiteElo "2571"]
[BlackElo "2339"]
[Result "1-0"]
[Round "02"]
[TimeControl "180+1"]
[Date "2021.09.28"]
[WhiteClock "0:01:01"]
[BlackClock "0:00:12"]

1. e4 {[%clk 0:03:00]}  c6 {[%clk 0:02:58]} 2. Nf3 {[%clk 0:02:59]}  d5 {[%clk 0:02:58]} 3. d3 {[%clk 0:03:00]}  g6 {[%clk 0:02:57]} 4. Qe2 {[%clk 0:03:00]}  Bg7 {[%clk 0:02:54]} 5. g3 {[%clk 0:03:00]}  Nd7 {[%clk 0:02:49]} 6. Bg2 {[%clk 0:03:00]}  e5 {[%clk 0:02:46]} 7. exd5 {[%clk 0:02:35]}  cxd5 {[%clk 0:02:46]} 8. Nxe5 {[%clk 0:02:36]}  Nxe5 {[%clk 0:02:46]} 9. d4 {[%clk 0:02:36]}  Bg4 {[%clk 0:02:23]} 10. f3 {[%clk 0:02:34]}  Bf5 {[%clk 0:02:22]} 11. dxe5 {[%clk 0:02:31]}  Qb6 {[%clk 0:02:09]} 12. c3 {[%clk 0:02:22]}  O-O-O {[%clk 0:01:52]} 13. Be3 {[%clk 0:02:14]}  Qc7 {[%clk 0:01:52]} 14. f4 {[%clk 0:02:14]}  f6 {[%clk 0:01:35]} 15. Na3 {[%clk 0:02:07]}  a6 {[%clk 0:01:32]} 16. O-O-O {[%clk 0:01:47]}  fxe5 {[%clk 0:01:25]} 17. fxe5 {[%clk 0:01:26]}  Qxe5 {[%clk 0:01:15]} 18. Bxd5 {[%clk 0:01:24]}  Rxd5 {[%clk 0:01:06]} 19. Qc4+ {[%clk 0:01:19]}  Kb8 {[%clk 0:00:55]} 20. Bf4 {[%clk 0:01:19]}  Bh6 {[%clk 0:00:46]} 21. Rxd5 {[%clk 0:01:11]}  Bxf4+ {[%clk 0:00:39]} 22. Qxf4 {[%clk 0:01:05]}  Qxf4+ {[%clk 0:00:39]} 23. gxf4 {[%clk 0:01:06]}  Nf6 {[%clk 0:00:34]} 24. Rd4 {[%clk 0:01:06]}  Re8 {[%clk 0:00:32]} 25. Nc2 {[%clk 0:01:06]}  Re2 {[%clk 0:00:22]} 26. Rd2 {[%clk 0:01:06]}  Re4 {[%clk 0:00:23]} 27. Rf1 {[%clk 0:01:06]}  Nh5 {[%clk 0:00:22]} 28. Nd4 {[%clk 0:01:05]}  Bg4 {[%clk 0:00:18]} 29. f5 {[%clk 0:01:02]}  gxf5 {[%clk 0:00:17]} 30. Nxf5 {[%clk 0:01:03]}  Nf4 {[%clk 0:00:17]} 31. Ng3 {[%clk 0:01:02]}  Ra4 {[%clk 0:00:12]} 32. b3 {[%clk 0:01:01]} 1-0


[Site "https://www.chess.com"]

[Event "Titled Tuesday Blitz September 28 2021"]
[White "Kislov, Oleg"]
[Black "Visakh N R"]
[WhiteFideId "13503774"]
[BlackFideId "25012223"]
[WhiteElo "2252"]
[BlackElo "2454"]
[Result "0-1"]
[Round "02"]
[TimeControl "180+1"]
[Date "2021.09.28"]
[WhiteClock "0:00:03"]
[BlackClock "0:00:08"]

1. e4 {[%clk 0:03:00]}  c6 {[%clk 0:02:51]} 2. d4 {[%clk 0:03:00]}  d5 {[%clk 0:02:51]} 3. Nc3 {[%clk 0:03:00]}  dxe4 {[%clk 0:02:50]} 4. Nxe4 {[%clk 0:03:01]}  Bf5 {[%clk 0:02:50]} 5. Ng3 {[%clk 0:03:01]}  Bg6 {[%clk 0:02:50]} 6. N1e2 {[%clk 0:03:02]}  e6 {[%clk 0:02:45]} 7. Nf4 {[%clk 0:03:02]}  Bd6 {[%clk 0:02:45]} 8. Ngh5 {[%clk 0:03:02]}  Bxh5 {[%clk 0:02:03]} 9. Nxh5 {[%clk 0:03:00]}  g6 {[%clk 0:02:03]} 10. Ng3 {[%clk 0:02:58]}  Nf6 {[%clk 0:02:02]} 11. c3 {[%clk 0:02:58]}  h5 {[%clk 0:02:01]} 12. Bg5 {[%clk 0:02:56]}  Be7 {[%clk 0:02:01]} 13. Bd3 {[%clk 0:02:52]}  h4 {[%clk 0:02:00]} 14. Ne2 {[%clk 0:02:45]}  Nbd7 {[%clk 0:01:58]} 15. Qc2 {[%clk 0:02:06]}  Qa5 {[%clk 0:01:55]} 16. Bd2 {[%clk 0:01:55]}  h3 {[%clk 0:01:21]} 17. g3 {[%clk 0:01:51]}  Qd5 {[%clk 0:01:19]} 18. Rg1 {[%clk 0:01:43]}  Qf3 {[%clk 0:01:19]} 19. O-O-O {[%clk 0:01:33]}  O-O-O {[%clk 0:01:17]} 20. Bf4 {[%clk 0:01:19]}  Rh5 {[%clk 0:00:45]} 21. Qa4 {[%clk 0:01:11]}  a6 {[%clk 0:00:31]} 22. g4 {[%clk 0:00:46]}  Rb5 {[%clk 0:00:14]} 23. Rg3 {[%clk 0:00:40]}  Qxf2 {[%clk 0:00:13]} 24. Bxb5 {[%clk 0:00:27]}  cxb5 {[%clk 0:00:13]} 25. Qc2 {[%clk 0:00:26]}  Nd5 {[%clk 0:00:13]} 26. Bh6 {[%clk 0:00:14]}  Qxh2 {[%clk 0:00:12]} 27. c4 {[%clk 0:00:12]}  Nb4 {[%clk 0:00:11]} 28. Qd2 {[%clk 0:00:09]}  bxc4 {[%clk 0:00:11]} 29. Bf4 {[%clk 0:00:06]}  Qf2 {[%clk 0:00:08]} 30. Rc3 {[%clk 0:00:06]}  Nd5 {[%clk 0:00:08]} 31. Rxc4+ {[%clk 0:00:06]}  Nc5 {[%clk 0:00:08]} 32. dxc5 {[%clk 0:00:03]}  Nxf4 {[%clk 0:00:08]} 33. Qxf4 {[%clk 0:00:03]}  Qxe2 {[%clk 0:00:07]} 34. Rxd8+ {[%clk 0:00:03]}  Bxd8 {[%clk 0:00:08]} 0-1


[Site "https://www.chess.com"]